[Event "Titled Tuesday Blitz March 29 Late 2022"]
[White "Guz, Ari"]
[Black "Oganian, Miran"]
[WhiteFideId "2825759"]
[BlackFideId "4122488"]
[WhiteElo "1913"]
[BlackElo "2357"]
[Result "1/2-1/2"]
[Round "08"]
[TimeControl "180+1"]
[Date "2022.03.29"]
[WhiteClock "0:00:15"]
[BlackClock "0:00:03"]

1. Nf3 {[%clk 0:03:00]}  Nf6 {[%clk 0:02:59]} 2. b3 {[%clk 0:03:00]}  g6 {[%clk 0:02:59]} 3. Bb2 {[%clk 0:03:00]}  Bg7 {[%clk 0:03:00]} 4. g3 {[%clk 0:03:00]}  O-O {[%clk 0:03:00]} 5. Bg2 {[%clk 0:03:01]}  d5 {[%clk 0:03:01]} 6. O-O {[%clk 0:03:01]}  c5 {[%clk 0:03:01]} 7. d4 {[%clk 0:03:00]}  Ne4 {[%clk 0:03:01]} 8. Nbd2 {[%clk 0:03:00]}  Nc6 {[%clk 0:03:00]} 9. e3 {[%clk 0:02:59]}  cxd4 {[%clk 0:03:00]} 10. Nxd4 {[%clk 0:02:56]}  Nxd4 {[%clk 0:02:58]} 11. exd4 {[%clk 0:02:55]}  Nxd2 {[%clk 0:02:57]} 12. Qxd2 {[%clk 0:02:55]}  Bf5 {[%clk 0:02:56]} 13. c4 {[%clk 0:02:51]}  dxc4 {[%clk 0:02:54]} 14. bxc4 {[%clk 0:02:52]}  Rc8 {[%clk 0:02:52]} 15. Rac1 {[%clk 0:02:47]}  b6 {[%clk 0:02:52]} 16. Rfe1 {[%clk 0:02:38]}  Qd7 {[%clk 0:02:52]} 17. d5 {[%clk 0:02:37]}  Bxb2 {[%clk 0:02:48]} 18. Qxb2 {[%clk 0:02:38]}  Rc7 {[%clk 0:02:47]} 19. h4 {[%clk 0:02:34]}  Rfc8 {[%clk 0:02:46]} 20. Qd4 {[%clk 0:02:30]}  Qd6 {[%clk 0:02:38]} 21. h5 {[%clk 0:02:25]}  gxh5 {[%clk 0:02:34]} 22. Bf1 {[%clk 0:02:14]}  Bg6 {[%clk 0:02:29]} 23. Re5 {[%clk 0:02:11]}  b5 {[%clk 0:02:26]} 24. Rce1 {[%clk 0:01:40]}  bxc4 {[%clk 0:02:23]} 25. Bh3 {[%clk 0:01:40]}  Rd8 {[%clk 0:02:18]} 26. Bf5 {[%clk 0:01:39]}  c3 {[%clk 0:02:17]} 27. Bxg6 {[%clk 0:01:39]}  hxg6 {[%clk 0:02:16]} 28. Qe4 {[%clk 0:01:26]}  c2 {[%clk 0:02:14]} 29. Rc1 {[%clk 0:01:27]}  Qa3 {[%clk 0:01:56]} 30. Rxc2 {[%clk 0:01:22]}  Rxc2 {[%clk 0:01:51]} 31. Qxc2 {[%clk 0:01:22]}  Qd6 {[%clk 0:01:50]} 32. Qe2 {[%clk 0:01:15]}  Rd7 {[%clk 0:01:48]} 33. Qe3 {[%clk 0:01:12]}  Qf6 {[%clk 0:01:47]} 34. Re4 {[%clk 0:01:04]}  Rxd5 {[%clk 0:01:45]} 35. Rxe7 {[%clk 0:01:01]}  Rd1+ {[%clk 0:01:45]} 36. Kh2 {[%clk 0:01:00]}  Qc6 {[%clk 0:01:43]} 37. Re8+ {[%clk 0:00:52]}  Kh7 {[%clk 0:01:43]} 38. Re4 {[%clk 0:00:52]}  Qb7 {[%clk 0:01:01]} 39. a4 {[%clk 0:00:41]}  Qb1 {[%clk 0:01:00]} 40. Qf3 {[%clk 0:00:40]}  Rd7 {[%clk 0:00:52]} 41. Re8 {[%clk 0:00:31]}  Qb2 {[%clk 0:00:48]} 42. Qe3 {[%clk 0:00:25]}  Qf6 {[%clk 0:00:42]} 43. Re4 {[%clk 0:00:23]}  Qb6 {[%clk 0:00:39]} 44. Qf3 {[%clk 0:00:21]}  a5 {[%clk 0:00:33]} 45. Rf4 {[%clk 0:00:20]}  Qe6 {[%clk 0:00:31]} 46. Qc3 {[%clk 0:00:19]}  Rd5 {[%clk 0:00:25]} 47. Qc7 {[%clk 0:00:17]}  Rf5 {[%clk 0:00:24]} 48. Kg1 {[%clk 0:00:15]}  Qe1+ {[%clk 0:00:22]} 49. Kg2 {[%clk 0:00:15]}  Qe6 {[%clk 0:00:20]} 50. Kg1 {[%clk 0:00:15]}  Qd5 {[%clk 0:00:21]} 51. Rxf5 {[%clk 0:00:13]}  Qxf5 {[%clk 0:00:21]} 52. Kg2 {[%clk 0:00:13]}  Qd5+ {[%clk 0:00:19]} 53. Kg1 {[%clk 0:00:13]}  Kg7 {[%clk 0:00:19]} 54. Qc3+ {[%clk 0:00:13]}  Kf8 {[%clk 0:00:19]} 55. Qc8+ {[%clk 0:00:13]}  Ke7 {[%clk 0:00:19]} 56. Qc7+ {[%clk 0:00:14]}  Ke6 {[%clk 0:00:20]} 57. Kh2 {[%clk 0:00:14]}  Kf5 {[%clk 0:00:17]} 58. Qf4+ {[%clk 0:00:13]}  Ke6 {[%clk 0:00:16]} 59. Qc7 {[%clk 0:00:14]}  Kf6 {[%clk 0:00:17]} 60. Qf4+ {[%clk 0:00:14]}  Kg7 {[%clk 0:00:16]} 61. Qc7 {[%clk 0:00:13]}  g5 {[%clk 0:00:16]} 62. Qc3+ {[%clk 0:00:13]}  f6 {[%clk 0:00:16]} 63. Qc7+ {[%clk 0:00:13]}  Kg6 {[%clk 0:00:16]} 64. Qb8 {[%clk 0:00:12]}  Qa2 {[%clk 0:00:11]} 65. Qe8+ {[%clk 0:00:11]}  Kf5 {[%clk 0:00:10]} 66. Kg1 {[%clk 0:00:11]}  Qb1+ {[%clk 0:00:08]} 67. Kh2 {[%clk 0:00:12]}  Qa2 {[%clk 0:00:07]} 68. Kg1 {[%clk 0:00:12]}  h4 {[%clk 0:00:08]} 69. gxh4 {[%clk 0:00:12]}  gxh4 {[%clk 0:00:09]} 70. Qd7+ {[%clk 0:00:10]}  Kf4 {[%clk 0:00:07]} 71. Qd4+ {[%clk 0:00:10]}  Kf3 {[%clk 0:00:06]} 72. Qe3+ {[%clk 0:00:10]}  Kg4 {[%clk 0:00:07]} 73. Qd4+ {[%clk 0:00:11]}  Kg5 {[%clk 0:00:07]} 74. Qe3+ {[%clk 0:00:11]}  Kh5 {[%clk 0:00:05]} 75. Qf3+ {[%clk 0:00:11]}  Kg6 {[%clk 0:00:05]} 76. Qd3+ {[%clk 0:00:11]}  f5 {[%clk 0:00:04]} 77. Qd6+ {[%clk 0:00:11]}  Kg5 {[%clk 0:00:04]} 78. Qe7+ {[%clk 0:00:12]}  Kg4 {[%clk 0:00:05]} 79. Qg7+ {[%clk 0:00:12]}  Kf3 {[%clk 0:00:05]} 80. Qb7+ {[%clk 0:00:12]}  Ke2 {[%clk 0:00:03]} 81. Qa6+ {[%clk 0:00:13]}  Kd2 {[%clk 0:00:03]} 82. Qxa5+ {[%clk 0:00:13]}  Kc1 {[%clk 0:00:03]} 83. Qxf5 {[%clk 0:00:13]}  Qxa4 {[%clk 0:00:03]} 84. Qg5+ {[%clk 0:00:14]}  Kd1 {[%clk 0:00:02]} 85. Qd5+ {[%clk 0:00:13]}  Ke2 {[%clk 0:00:02]} 86. Qe5+ {[%clk 0:00:13]}  Kd2 {[%clk 0:00:03]} 87. Qd5+ {[%clk 0:00:13]}  Ke2 {[%clk 0:00:02]} 88. Qe5+ {[%clk 0:00:14]}  Kf3 {[%clk 0:00:03]} 89. Qf6+ {[%clk 0:00:13]}  Kg4 {[%clk 0:00:03]} 90. Qg6+ {[%clk 0:00:13]}  Kf4 {[%clk 0:00:03]} 91. Qf6+ {[%clk 0:00:14]}  Kg4 {[%clk 0:00:03]} 92. Qg6+ {[%clk 0:00:14]}  Kf4 {[%clk 0:00:03]} 93. Qf6+ {[%clk 0:00:15]}  Kg4 {[%clk 0:00:03]} 1/2-1/2


[Site "https://www.chess.com"]

[Event "Titled Tuesday Blitz March 29 Late 2022"]
[White "Harish, Neeraj"]
[Black "Winkels, Marcel"]
[WhiteFideId "30958130"]
[BlackFideId "1003887"]
[WhiteElo "1574"]
[BlackElo "1900"]
[Result "1-0"]
[Round "08"]
[TimeControl "180+1"]
[Date "2022.03.30"]
[WhiteClock "0:01:26"]
[BlackClock "0:01:22"]

1. e4 {[%clk 0:03:00]}  c5 {[%clk 0:02:59]} 2. Nf3 {[%clk 0:03:00]}  e6 {[%clk 0:02:59]} 3. d4 {[%clk 0:03:00]}  cxd4 {[%clk 0:02:59]} 4. Nxd4 {[%clk 0:03:01]}  a6 {[%clk 0:02:59]} 5. Bd3 {[%clk 0:03:00]}  Bc5 {[%clk 0:02:58]} 6. Nb3 {[%clk 0:02:58]}  Ba7 {[%clk 0:02:58]} 7. Nc3 {[%clk 0:02:51]}  Nf6 {[%clk 0:02:54]} 8. Bg5 {[%clk 0:02:43]}  h6 {[%clk 0:02:53]} 9. Bh4 {[%clk 0:02:37]}  d6 {[%clk 0:02:50]} 10. Qe2 {[%clk 0:02:27]}  b5 {[%clk 0:02:48]} 11. O-O-O {[%clk 0:02:25]}  Bb7 {[%clk 0:02:47]} 12. e5 {[%clk 0:02:21]}  g5 {[%clk 0:02:41]} 13. Bg3 {[%clk 0:02:12]}  Nd5 {[%clk 0:02:34]} 14. Nxd5 {[%clk 0:02:08]}  Bxd5 {[%clk 0:02:31]} 15. exd6 {[%clk 0:02:08]}  O-O {[%clk 0:02:30]} 16. h4 {[%clk 0:02:02]}  f6 {[%clk 0:02:20]} 17. hxg5 {[%clk 0:01:56]}  fxg5 {[%clk 0:02:14]} 18. Rxh6 {[%clk 0:01:50]}  Rf6 {[%clk 0:02:00]} 19. Qh5 {[%clk 0:01:35]}  Rxh6 {[%clk 0:01:44]} 20. Qxh6 {[%clk 0:01:36]}  Qd7 {[%clk 0:01:37]} 21. Be5 {[%clk 0:01:36]}  Kf7 {[%clk 0:01:23]} 22. Bg6+ {[%clk 0:01:26]}  Kg8 {[%clk 0:01:22]} 23. Qh8# {[%clk 0:01:26]} 1-0


[Site "https://www.chess.com"]

[Event "Titled Tuesday Blitz March 29 Late 2022"]
[White "Hess, Robert"]
[Black "Nazari, Arad"]
[WhiteFideId "2022036"]
[BlackFideId "12577324"]
[WhiteElo "2557"]
[BlackElo "2120"]
[Result "1/2-1/2"]
[Round "08"]
[TimeControl "180+1"]
[Date "2022.03.29"]
[WhiteClock "0:00:06"]
[BlackClock "0:00:34"]

1. b3 {[%clk 0:03:00]}  Nf6 {[%clk 0:03:00]} 2. Bb2 {[%clk 0:03:00]}  g6 {[%clk 0:03:00]} 3. d3 {[%clk 0:03:00]}  Bg7 {[%clk 0:02:59]} 4. Nd2 {[%clk 0:03:01]}  O-O {[%clk 0:02:59]} 5. h3 {[%clk 0:03:00]}  d5 {[%clk 0:02:57]} 6. e3 {[%clk 0:03:01]}  c5 {[%clk 0:02:57]} 7. Ne2 {[%clk 0:03:01]}  Nc6 {[%clk 0:02:58]} 8. g4 {[%clk 0:03:02]}  e5 {[%clk 0:02:58]} 9. Bg2 {[%clk 0:03:02]}  d4 {[%clk 0:02:56]} 10. Bxc6 {[%clk 0:03:02]}  bxc6 {[%clk 0:02:56]} 11. e4 {[%clk 0:03:02]}  Be6 {[%clk 0:02:55]} 12. f4 {[%clk 0:02:48]}  exf4 {[%clk 0:02:51]} 13. Nxf4 {[%clk 0:02:49]}  Nd7 {[%clk 0:02:38]} 14. Qf3 {[%clk 0:02:43]}  Qh4+ {[%clk 0:02:35]} 15. Qf2 {[%clk 0:02:32]}  Qxf2+ {[%clk 0:02:33]} 16. Kxf2 {[%clk 0:02:33]}  Bh6 {[%clk 0:02:31]} 17. Kg3 {[%clk 0:02:33]}  Rae8 {[%clk 0:02:14]} 18. Raf1 {[%clk 0:02:28]}  f5 {[%clk 0:02:09]} 19. Bc1 {[%clk 0:01:52]}  fxe4 {[%clk 0:01:45]} 20. Nxe4 {[%clk 0:01:39]}  Bxf4+ {[%clk 0:01:44]} 21. Rxf4 {[%clk 0:01:22]}  Rxf4 {[%clk 0:01:44]} 22. Bxf4 {[%clk 0:01:14]}  Bd5 {[%clk 0:01:44]} 23. Re1 {[%clk 0:00:50]}  Bxe4 {[%clk 0:01:43]} 24. dxe4 {[%clk 0:00:51]}  Kf7 {[%clk 0:01:43]} 25. Bc7 {[%clk 0:00:21]}  Ke6 {[%clk 0:01:41]} 26. Rf1 {[%clk 0:00:20]}  Rf8 {[%clk 0:01:41]} 27. Rxf8 {[%clk 0:00:15]}  Nxf8 {[%clk 0:01:42]} 28. Kf4 {[%clk 0:00:15]}  h6 {[%clk 0:01:39]} 29. Bb8 {[%clk 0:00:08]}  a6 {[%clk 0:01:38]} 30. h4 {[%clk 0:00:09]}  g5+ {[%clk 0:01:33]} 31. hxg5 {[%clk 0:00:08]}  Ng6+ {[%clk 0:01:34]} 32. Kf3 {[%clk 0:00:07]}  hxg5 {[%clk 0:01:34]} 33. Bc7 {[%clk 0:00:03]}  Ne5+ {[%clk 0:01:34]} 34. Kg3 {[%clk 0:00:04]}  d3 {[%clk 0:01:23]} 35. cxd3 {[%clk 0:00:05]}  Nxd3 {[%clk 0:01:23]} 36. Bd8 {[%clk 0:00:04]}  Ke5 {[%clk 0:01:18]} 37. Bxg5 {[%clk 0:00:04]}  Kxe4 {[%clk 0:01:18]} 38. Bd2 {[%clk 0:00:04]}  Ne5 {[%clk 0:01:13]} 39. Bc3 {[%clk 0:00:04]}  Ng6 {[%clk 0:00:57]} 40. Bb2 {[%clk 0:00:03]}  Nf4 {[%clk 0:00:54]} 41. g5 {[%clk 0:00:02]}  Kf5 {[%clk 0:00:52]} 42. Kh4 {[%clk 0:00:02]}  Ne6 {[%clk 0:00:44]} 43. Bc1 {[%clk 0:00:02]}  Nf8 {[%clk 0:00:39]} 44. Kh5 {[%clk 0:00:02]}  Ng6 {[%clk 0:00:39]} 45. Kh6 {[%clk 0:00:02]}  Ne5 {[%clk 0:00:38]} 46. Kg7 {[%clk 0:00:02]}  c4 {[%clk 0:00:37]} 47. bxc4 {[%clk 0:00:01]}  Nxc4 {[%clk 0:00:37]} 48. Kf7 {[%clk 0:00:02]}  Ne5+ {[%clk 0:00:37]} 49. Ke7 {[%clk 0:00:02]}  c5 {[%clk 0:00:36]} 50. Kd6 {[%clk 0:00:02]}  c4 {[%clk 0:00:36]} 51. Kd5 {[%clk 0:00:02]}  c3 {[%clk 0:00:29]} 52. Kd4 {[%clk 0:00:02]}  c2 {[%clk 0:00:30]} 53. Kc3 {[%clk 0:00:02]}  Nf3 {[%clk 0:00:30]} 54. Kxc2 {[%clk 0:00:02]}  Nxg5 {[%clk 0:00:30]} 55. Kb3 {[%clk 0:00:02]}  Ne4 {[%clk 0:00:29]} 56. Kb4 {[%clk 0:00:02]}  Ke6 {[%clk 0:00:30]} 57. Bb2 {[%clk 0:00:02]}  Kd7 {[%clk 0:00:30]} 58. Ka5 {[%clk 0:00:02]}  Kc8 {[%clk 0:00:31]} 59. Kxa6 {[%clk 0:00:03]}  Kb8 {[%clk 0:00:31]} 60. Kb6 {[%clk 0:00:03]}  Ka8 {[%clk 0:00:32]} 61. a4 {[%clk 0:00:03]}  Nc3 {[%clk 0:00:31]} 62. Bxc3 {[%clk 0:00:04]}  Kb8 {[%clk 0:00:31]} 63. a5 {[%clk 0:00:04]}  Ka8 {[%clk 0:00:32]} 64. a6 {[%clk 0:00:05]}  Kb8 {[%clk 0:00:33]} 65. a7+ {[%clk 0:00:06]}  Ka8 {[%clk 0:00:34]} 66. Be5 {[%clk 0:00:06]} 1/2-1/2


[Site "https://www.chess.com"]

[Event "Titled Tuesday Blitz March 29 Late 2022"]
[White "Hoffmann, Asa"]
[Black "Rudykh, Stepan"]
[WhiteFideId "2001470"]
[BlackFideId "4180321"]
[WhiteElo "2117"]
[BlackElo "2204"]
[Result "0-1"]
[Round "08"]
[TimeControl "180+1"]
[Date "2022.03.30"]
[WhiteClock "0:00:02"]
[BlackClock "0:00:16"]

1. d4 {[%clk 0:02:48]}  e6 {[%clk 0:02:59]} 2. e4 {[%clk 0:02:48]}  d5 {[%clk 0:02:59]} 3. e5 {[%clk 0:02:47]}  c5 {[%clk 0:02:59]} 4. Nf3 {[%clk 0:02:46]}  cxd4 {[%clk 0:02:57]} 5. Qxd4 {[%clk 0:02:44]}  Nc6 {[%clk 0:02:57]} 6. Qf4 {[%clk 0:02:43]}  h6 {[%clk 0:02:50]} 7. Bd3 {[%clk 0:02:43]}  Qc7 {[%clk 0:02:37]} 8. O-O {[%clk 0:02:41]}  Nb4 {[%clk 0:02:33]} 9. Nc3 {[%clk 0:02:40]}  Nxd3 {[%clk 0:02:31]} 10. cxd3 {[%clk 0:02:40]}  Bd7 {[%clk 0:02:31]} 11. Be3 {[%clk 0:02:36]}  Ne7 {[%clk 0:02:23]} 12. Rac1 {[%clk 0:02:34]}  Qa5 {[%clk 0:02:16]} 13. Nd4 {[%clk 0:02:23]}  Ng6 {[%clk 0:02:05]} 14. Qg3 {[%clk 0:02:22]}  Be7 {[%clk 0:01:53]} 15. f4 {[%clk 0:02:20]}  Bh4 {[%clk 0:01:28]} 16. Qh3 {[%clk 0:02:18]}  O-O {[%clk 0:01:21]} 17. g3 {[%clk 0:02:02]}  Be7 {[%clk 0:01:16]} 18. Nb3 {[%clk 0:01:53]}  Qa6 {[%clk 0:01:13]} 19. Rfd1 {[%clk 0:01:49]}  Rac8 {[%clk 0:01:10]} 20. d4 {[%clk 0:01:45]}  Ba4 {[%clk 0:01:06]} 21. f5 {[%clk 0:01:38]}  exf5 {[%clk 0:01:04]} 22. Nxd5 {[%clk 0:01:35]}  Bxb3 {[%clk 0:00:59]} 23. axb3 {[%clk 0:01:34]}  Qe6 {[%clk 0:00:51]} 24. Nc3 {[%clk 0:01:29]}  Rfd8 {[%clk 0:00:46]} 25. Rf1 {[%clk 0:01:27]}  Qxb3 {[%clk 0:00:44]} 26. Qxf5 {[%clk 0:01:22]}  Rf8 {[%clk 0:00:43]} 27. Rf2 {[%clk 0:01:15]}  Bb4 {[%clk 0:00:41]} 28. Rcf1 {[%clk 0:01:05]}  Bxc3 {[%clk 0:00:37]} 29. bxc3 {[%clk 0:01:05]}  Qxc3 {[%clk 0:00:37]} 30. Rf3 {[%clk 0:01:02]}  Qc4 {[%clk 0:00:32]} 31. Rc1 {[%clk 0:00:56]}  Qe6 {[%clk 0:00:29]} 32. Qe4 {[%clk 0:00:52]}  Rxc1+ {[%clk 0:00:28]} 33. Bxc1 {[%clk 0:00:51]}  b5 {[%clk 0:00:25]} 34. h4 {[%clk 0:00:44]}  b4 {[%clk 0:00:21]} 35. Bb2 {[%clk 0:00:33]}  Ne7 {[%clk 0:00:18]} 36. Qb7 {[%clk 0:00:27]}  a5 {[%clk 0:00:17]} 37. Qb5 {[%clk 0:00:25]}  Qd5 {[%clk 0:00:16]} 38. Qd3 {[%clk 0:00:12]}  a4 {[%clk 0:00:16]} 39. Kg2 {[%clk 0:00:07]}  a3 {[%clk 0:00:16]} 40. Bxa3 {[%clk 0:00:06]}  bxa3 {[%clk 0:00:16]} 41. Qxa3 {[%clk 0:00:06]}  Nc6 {[%clk 0:00:15]} 42. Qc5 {[%clk 0:00:04]}  Qxc5 {[%clk 0:00:14]} 43. dxc5 {[%clk 0:00:04]}  Nxe5 {[%clk 0:00:15]} 44. Rf5 {[%clk 0:00:03]}  f6 {[%clk 0:00:15]} 45. g4 {[%clk 0:00:03]}  Nxg4 {[%clk 0:00:15]} 46. Kg3 {[%clk 0:00:02]}  Ne5 {[%clk 0:00:15]} 47. Kf4 {[%clk 0:00:02]}  Rc8 {[%clk 0:00:16]} 48. h5 {[%clk 0:00:02]}  Rxc5 {[%clk 0:00:16]} 49. Ke4 {[%clk 0:00:02]}  Rc4+ {[%clk 0:00:16]} 0-1


[Site "https://www.chess.com"]

[Event "Titled Tuesday Blitz March 29 Late 2022"]
[White "Holt, Conrad"]
[Black "Caruana, Fabiano"]
[WhiteFideId "2034387"]
[BlackFideId "2020009"]
[WhiteElo "2586"]
[BlackElo "2744"]
[Result "1-0"]
[Round "08"]
[TimeControl "180+1"]
[Date "2022.03.29"]
[WhiteClock "0:00:36"]
[BlackClock "0:00:12"]

1. d4 {[%clk 0:02:57]}  Nf6 {[%clk 0:02:59]} 2. c4 {[%clk 0:02:57]}  e6 {[%clk 0:02:59]} 3. Nc3 {[%clk 0:02:58]}  Bb4 {[%clk 0:02:58]} 4. Qc2 {[%clk 0:02:58]}  O-O {[%clk 0:02:57]} 5. e4 {[%clk 0:02:58]}  d6 {[%clk 0:02:56]} 6. a3 {[%clk 0:02:57]}  Bxc3+ {[%clk 0:02:56]} 7. bxc3 {[%clk 0:02:58]}  e5 {[%clk 0:02:56]} 8. Bd3 {[%clk 0:02:58]}  c5 {[%clk 0:02:53]} 9. Ne2 {[%clk 0:02:59]}  Nc6 {[%clk 0:02:53]} 10. d5 {[%clk 0:02:56]}  Ne7 {[%clk 0:02:53]} 11. O-O {[%clk 0:02:55]}  Ng6 {[%clk 0:02:53]} 12. f3 {[%clk 0:02:54]}  h6 {[%clk 0:02:49]} 13. Be3 {[%clk 0:02:53]}  Nh7 {[%clk 0:02:46]} 14. Kh1 {[%clk 0:02:52]}  Bd7 {[%clk 0:02:39]} 15. g3 {[%clk 0:02:51]}  a6 {[%clk 0:02:37]} 16. f4 {[%clk 0:02:48]}  exf4 {[%clk 0:02:19]} 17. gxf4 {[%clk 0:02:48]}  f5 {[%clk 0:01:50]} 18. Ng3 {[%clk 0:02:46]}  Qh4 {[%clk 0:01:37]} 19. Rae1 {[%clk 0:02:32]}  Rae8 {[%clk 0:01:33]} 20. Nxf5 {[%clk 0:02:21]}  Bxf5 {[%clk 0:01:32]} 21. exf5 {[%clk 0:02:22]}  Ne7 {[%clk 0:01:30]} 22. Bg1 {[%clk 0:02:15]}  Rf7 {[%clk 0:00:53]} 23. f6 {[%clk 0:02:09]}  Nxf6 {[%clk 0:00:52]} 24. Re6 {[%clk 0:02:05]}  Nh5 {[%clk 0:00:48]} 25. Bf2 {[%clk 0:01:30]}  Qh3 {[%clk 0:00:38]} 26. Re3 {[%clk 0:01:27]}  Qd7 {[%clk 0:00:35]} 27. Bh4 {[%clk 0:01:12]}  Ref8 {[%clk 0:00:32]} 28. Qe2 {[%clk 0:01:02]}  Nf5 {[%clk 0:00:22]} 29. Re6 {[%clk 0:00:55]}  Nxh4 {[%clk 0:00:20]} 30. Qxh5 {[%clk 0:00:55]}  Nf5 {[%clk 0:00:20]} 31. Rg1 {[%clk 0:00:52]}  Kh8 {[%clk 0:00:20]} 32. Rgg6 {[%clk 0:00:39]}  Qa4 {[%clk 0:00:14]} 33. Bxf5 {[%clk 0:00:36]}  Rxf5 {[%clk 0:00:12]} 34. Rxh6+ {[%clk 0:00:36]} 1-0


[Site "https://www.chess.com"]

[Event "Titled Tuesday Blitz March 29 Late 2022"]
[White "Ibarra Jerez, Jose Carlos"]
[Black "Bortnyk, Olexandr"]
[WhiteFideId "2226332"]
[BlackFideId "14120828"]
[WhiteElo "2626"]
[BlackElo "2723"]
[Result "0-1"]
[Round "08"]
[TimeControl "180+1"]
[Date "2022.03.29"]
[WhiteClock "0:00:05"]
[BlackClock "0:00:07"]

1. Nf3 {[%clk 0:03:00]}  d6 {[%clk 0:02:44]} 2. e4 {[%clk 0:02:58]}  Nf6 {[%clk 0:02:38]} 3. Nc3 {[%clk 0:02:56]}  e5 {[%clk 0:02:39]} 4. d4 {[%clk 0:02:56]}  Nbd7 {[%clk 0:02:39]} 5. Bc4 {[%clk 0:02:56]}  Be7 {[%clk 0:02:34]} 6. a4 {[%clk 0:02:55]}  h6 {[%clk 0:02:23]} 7. O-O {[%clk 0:02:54]}  c6 {[%clk 0:02:24]} 8. Re1 {[%clk 0:02:52]}  Qc7 {[%clk 0:02:24]} 9. b3 {[%clk 0:02:48]}  g5 {[%clk 0:02:23]} 10. Ba3 {[%clk 0:02:45]}  Nf8 {[%clk 0:02:22]} 11. d5 {[%clk 0:02:32]}  Ng6 {[%clk 0:02:18]} 12. Nd2 {[%clk 0:02:22]}  Nf4 {[%clk 0:01:56]} 13. Nf1 {[%clk 0:02:17]}  h5 {[%clk 0:01:42]} 14. Ne3 {[%clk 0:02:14]}  h4 {[%clk 0:01:37]} 15. Qd2 {[%clk 0:02:00]}  g4 {[%clk 0:01:31]} 16. dxc6 {[%clk 0:01:55]}  bxc6 {[%clk 0:01:32]} 17. Rad1 {[%clk 0:01:52]}  g3 {[%clk 0:00:23]} 18. Bxd6 {[%clk 0:01:48]}  gxf2+ {[%clk 0:00:16]} 19. Kxf2 {[%clk 0:01:49]}  Qb6 {[%clk 0:00:04]} 20. Bxe7 {[%clk 0:01:35]}  Ng4+ {[%clk 0:00:05]} 21. Kg1 {[%clk 0:01:35]}  Kxe7 {[%clk 0:00:05]} 22. Qd6+ {[%clk 0:01:19]}  Ke8 {[%clk 0:00:05]} 23. a5 {[%clk 0:01:19]}  Qxa5 {[%clk 0:00:05]} 24. Qxc6+ {[%clk 0:01:13]}  Kf8 {[%clk 0:00:04]} 25. Nxg4 {[%clk 0:00:32]}  Bxg4 {[%clk 0:00:05]} 26. Qxa8+ {[%clk 0:00:21]}  Kg7 {[%clk 0:00:05]} 27. Qb7 {[%clk 0:00:22]}  Rf8 {[%clk 0:00:05]} 28. Nd5 {[%clk 0:00:19]}  Qc5+ {[%clk 0:00:04]} 29. Kh1 {[%clk 0:00:09]}  Nh3 {[%clk 0:00:04]} 30. Ne3 {[%clk 0:00:07]}  Nf2+ {[%clk 0:00:04]} 31. Kg1 {[%clk 0:00:06]}  Nxd1 {[%clk 0:00:05]} 32. Qd5 {[%clk 0:00:05]}  Qxd5 {[%clk 0:00:02]} 33. Bxd5 {[%clk 0:00:06]}  Nxe3 {[%clk 0:00:02]} 34. Rxe3 {[%clk 0:00:06]}  Rc8 {[%clk 0:00:02]} 35. c4 {[%clk 0:00:06]}  a5 {[%clk 0:00:02]} 36. Rc3 {[%clk 0:00:06]}  f5 {[%clk 0:00:01]} 37. Be6 {[%clk 0:00:06]}  Rd8 {[%clk 0:00:02]} 38. Bxf5 {[%clk 0:00:05]}  Bxf5 {[%clk 0:00:02]} 39. exf5 {[%clk 0:00:05]}  Kf6 {[%clk 0:00:02]} 40. Kf2 {[%clk 0:00:05]}  Kxf5 {[%clk 0:00:03]} 41. c5 {[%clk 0:00:06]}  Ke4 {[%clk 0:00:03]} 42. c6 {[%clk 0:00:06]}  Kd4 {[%clk 0:00:03]} 43. Rc4+ {[%clk 0:00:07]}  Kd5 {[%clk 0:00:03]} 44. c7 {[%clk 0:00:07]}  Rc8 {[%clk 0:00:04]} 45. Kf3 {[%clk 0:00:07]}  a4 {[%clk 0:00:04]} 46. Rxa4 {[%clk 0:00:07]}  Rxc7 {[%clk 0:00:05]} 47. Rxh4 {[%clk 0:00:08]}  Rc3+ {[%clk 0:00:05]} 48. Kg4 {[%clk 0:00:08]}  Rxb3 {[%clk 0:00:05]} 49. Rh8 {[%clk 0:00:08]}  Rb4+ {[%clk 0:00:05]} 50. Kg5 {[%clk 0:00:08]}  e4 {[%clk 0:00:05]} 51. g4 {[%clk 0:00:09]}  e3 {[%clk 0:00:05]} 52. Rd8+ {[%clk 0:00:08]}  Ke4 {[%clk 0:00:05]} 53. Re8+ {[%clk 0:00:09]}  Kf3 {[%clk 0:00:06]} 54. Kf5 {[%clk 0:00:08]}  Rf4+ {[%clk 0:00:06]} 55. Kg5 {[%clk 0:00:06]}  Rxg4+ {[%clk 0:00:06]} 56. Kf5 {[%clk 0:00:06]}  Rf4+ {[%clk 0:00:06]} 57. Kg5 {[%clk 0:00:06]}  Re4 {[%clk 0:00:06]} 58. Rf8+ {[%clk 0:00:05]}  Kg2 {[%clk 0:00:06]} 59. Ra8 {[%clk 0:00:05]}  e2 {[%clk 0:00:07]} 60. Ra1 {[%clk 0:00:06]}  Kxh2 {[%clk 0:00:06]} 61. Re1 {[%clk 0:00:06]}  Kg2 {[%clk 0:00:06]} 62. Kf5 {[%clk 0:00:06]}  Kf2 {[%clk 0:00:06]} 63. Rh1 {[%clk 0:00:05]}  e1=Q {[%clk 0:00:07]} 64. Rh2+ {[%clk 0:00:05]}  Kg3 {[%clk 0:00:07]} 0-1


[Site "https://www.chess.com"]